bitfinex/quotes_ETHUSD_20250519
["timestamp","ask_amount","ask_price","bid_price","bid_amount"]
[1747684250745,3.96410858,2522.7,2522.6,1.0]
[1747684252048,1.6027,2523.1,2522.6,1.0]
[1747684252249,1.6027,2523.1,2522.7,8.255]
[1747684252454,3.96384969,2522.8,2522.7,8.255]
[1747684255357,3.96376483,2522.9,2522.7,8.255]
[1747684255662,3.9633071,2523.2,2522.8,10.09827]
[1747684255867,3.9629971,2523.4,2522.8,10.09827]
[1747684255868,3.96296502,2523.4,2522.8,11.96377671]
[1747684256024,3.9632246,2523.2,2522.9,8.0]
[1747684256354,3.96244255,2523.7,2522.9,11.96368175]
[1747684256355,3.96313437,2523.3,2522.9,11.96368175]
[1747684256531,3.96324269,2523.2,2522.9,8.0]
[1747684257175,3.96282855,2523.5,2522.9,8.0]
[1747684257477,3.96340677,2523.1,2522.9,8.0]
[1747684257678,1.5702,2523.8,2522.9,8.0]
[1747684257967,3.96275014,2523.5,2522.7,0.0196]
[1747684258263,3.96384969,2522.8,2522.7,0.0196]
[1747684258465,3.96384969,2522.8,2522.7,16.2616]
[1747684259560,3.96384969,2522.8,2522.7,8.242]
[1747684259769,3.96400681,2522.7,2522.6,1.0]
[1747684259926,3.96400681,2522.7,2522.6,9.242]
[1747684261269,3.96384969,2522.8,2522.6,9.242]
[1747684261968,3.96400681,2522.7,2522.6,9.242]
[1747684262125,3.96324853,2523.2,2522.6,9.242]
[1747684262355,3.96396046,2522.8,2522.6,9.242]
[1747684262556,3.96400681,2522.7,2522.6,9.242]
[1747684262944,3.96337375,2523.2,2522.6,9.242]
[1747684263261,3.96395108,2522.8,2522.6,9.242]
[1747684263597,3.9637319,2522.9,2522.7,8.0]
[1747684264466,3.96400681,2522.7,2522.6,9.242]
[1747684265051,3.96391806,2522.8,2522.6,9.242]
[1747684265259,3.96333749,2523.2,2522.7,8.03963799]
[1747684265574,3.96333749,2523.2,2522.7,12.00355557]
[1747684265744,3.96342931,2523.1,2522.8,0.0196]
[1747684266062,3.96342931,2523.1,2522.8,0.05923328]
[1747684266224,1.6553,2523.4,2522.6,9.242]
[1747684266431,3.96373553,2522.9,2522.6,9.242]
[1747684266630,3.96306424,2523.3,2522.7,0.12375901]
[1747684266842,3.96384969,2522.8,2522.7,0.12375901]
[1747684267046,3.96400681,2522.7,2522.6,9.242]
[1747684267257,3.96324932,2523.2,2522.7,8.0]
[1747684267438,3.96381297,2522.9,2522.6,9.242]
[1747684267638,3.96324932,2523.2,2522.6,9.242]
[1747684267952,3.96384969,2522.8,2522.7,8.12376434]
[1747684268155,3.96373785,2522.9,2522.7,8.0]
[1747684268337,3.96377602,2522.9,2522.7,8.0]
[1747684268663,3.96384969,2522.8,2522.7,8.0]
[1747684268866,3.96400681,2522.7,2522.6,17.242]
[1747684269066,3.96400681,2522.7,2522.6,1.0]
[1747684269363,5.15316417,2522.7,2522.6,1.0]
[1747684269940,6.73806417,2522.7,2522.6,1.0]
[1747684270100,11.91031285,2522.7,2522.6,0.21875]
[1747684270409,5.54984984,2522.1,2522.0,0.46302978]
[1747684270551,3.96494984,2522.1,2522.0,0.46302978]
[1747684270879,3.96542152,2521.8,2521.7,8.242]
[1747684271246,3.96589331,2521.5,2521.4,22.259]
[1747684271481,3.96583556,2521.6,2521.4,25.386308]
[1747684271678,3.96557937,2521.7,2521.5,10.85897]
[1747684271849,1.5849,2522.4,2521.5,8.0]
[1747684272052,3.96568173,2521.7,2521.5,8.0]
[1747684272249,3.96552486,2521.8,2521.6,0.12382726]
[1747684272511,3.96529782,2521.9,2521.5,8.0]
[1747684272726,3.96515091,2522.0,2521.5,11.96579458]
[1747684272887,3.96481883,2522.2,2521.8,0.2383]
[1747684273095,3.9645756,2522.4,2522.0,8.0]
[1747684273416,3.96480412,2522.2,2522.0,8.0]
[1747684273772,3.96494984,2522.1,2522.0,8.0]
[1747684274078,3.96432111,2522.5,2521.5,8.2383]
[1747684274274,3.96551824,2521.8,2521.7,8.0]
[1747684274506,3.96573604,2521.6,2521.5,0.2383]
[1747684274717,3.96549423,2521.8,2521.5,11.09727]
[1747684274917,3.96549423,2521.8,2521.6,0.12381577]
[1747684275088,3.9655593,2521.8,2521.6,0.12381577]
[1747684275290,3.96532252,2521.9,2521.6,0.12381577]
[1747684275489,3.96532252,2521.9,2521.7,0.12381577]
[1747684275687,3.96542152,2521.8,2521.7,0.12381577]
[1747684276579,3.96573604,2521.6,2521.5,16.243]
[1747684276922,3.96551008,2521.8,2521.5,19.048084]
[1747684277077,3.96549938,2521.8,2521.5,16.243]
[1747684277284,3.96558903,2521.7,2521.6,0.12381934]
[1747684277696,3.96558903,2521.7,2521.5,16.243]
[1747684278018,3.96573604,2521.6,2521.5,8.243]
[1747684278203,3.96573604,2521.6,2521.4,14.259]
[1747684278399,3.96589331,2521.5,2521.4,22.502]
[1747684281813,5.52060835,2522.0,2521.4,22.502]
[1747684282017,3.96589331,2521.5,2521.4,22.502]
[1747684282518,3.96582632,2521.6,2521.4,22.502]
[1747684282725,3.96589331,2521.5,2521.4,22.502]
[1747684282925,3.96589331,2521.5,2521.4,30.502]
[1747684283092,3.96562145,2521.7,2521.4,30.502]
[1747684283093,3.96586268,2521.6,2521.4,30.502]
[1747684283289,3.96560492,2521.7,2521.4,30.502]
[1747684283629,3.96549665,2521.8,2521.5,8.2383]
[1747684283789,1.5648,2522.3,2521.5,8.2383]
[1747684283990,3.9651279,2522.0,2521.6,3.96571829]
[1747684284192,3.96503434,2522.1,2521.6,3.96571829]
[1747684284388,3.96463424,2522.4,2521.6,3.96571829]
[1747684284389,1.6513,2522.7,2522.1,8.0]
[1747684284625,1.6513,2522.7,2522.2,8.28464288]
[1747684284626,3.96457292,2522.4,2522.2,8.28464288]
[1747684284832,3.96463545,2522.3,2522.2,8.245]
[1747684284999,1.6513,2522.7,2522.2,8.245]
[1747684285000,2.21281561,2522.7,2522.2,8.245]
[1747684285643,1.6058,2522.5,2521.6,8.231]
[1747684285791,3.96557877,2521.7,2521.6,8.231]
[1747684286800,1.6058,2521.8,2521.5,8.0]
[1747684287006,3.96573604,2521.6,2521.5,16.231]
[1747684287438,3.96573604,2521.6,2521.5,8.231]
[1747684290528,3.96589331,2521.5,2521.1,8.0]
[1747684290732,3.96589331,2521.5,2521.3,8.232]
[1747684290733,5.62309331,2521.5,2521.3,8.232]
[1747684293047,6.17309331,2521.5,2520.4,0.70132978]
[1747684293213,3.96746677,2520.5,2520.4,0.70132978]
[1747684293413,3.96746677,2520.5,2520.4,9.05718964]
[1747684293826,1.6215,2521.2,2520.4,8.93332978]
[1747684294027,8.233,2522.5,2520.4,8.93332978]
[1747684294028,3.9662079,2521.3,2520.5,0.03966865]
[1747684294349,3.96648233,2521.2,2520.6,4.09100356]
[1747684294538,3.96627808,2521.3,2520.6,4.09100356]
[1747684294717,3.9667129,2521.0,2520.7,8.12385099]
[1747684295042,3.9667129,2521.0,2520.8,0.12385099]
[1747684295255,3.9667129,2521.0,2520.9,8.233]
[1747684296850,3.96649779,2521.2,2520.9,8.233]
[1747684297020,3.96664797,2521.1,2520.9,8.233]
[1747684297641,1.6215,2521.4,2520.9,8.233]
[1747684297953,3.96659275,2521.1,2520.9,8.233]
[1747684298355,3.96667988,2521.0,2520.9,16.233]
[1747684299053,3.96667988,2521.0,2520.9,16.35685698]
[1747684299452,3.96661553,2521.1,2520.9,16.35685698]
[1747684299658,1.6243,2521.8,2521.0,37.082261]
[1747684299821,3.96551834,2521.8,2521.4,8.0]
[1747684300153,3.96558073,2521.7,2521.5,8.233]
[1747684300357,3.96466213,2522.3,2521.8,8.0]
[1747684300655,1.6243,2522.7,2521.8,11.96531834]
[1747684300855,3.96461847,2522.4,2521.9,8.0]
[1747684301028,3.96461847,2522.4,2522.0,22.62385698]
[1747684301240,1.6243,2522.7,2522.0,22.62385698]
[1747684301433,3.96491501,2522.2,2522.0,22.62385698]
[1747684301629,3.96494984,2522.1,2522.0,22.5]
[1747684301829,3.96486239,2522.2,2522.0,22.5]
[1747684302751,3.96494984,2522.1,2522.0,22.5]
[1747684302958,1.6243,2522.7,2522.0,22.5]
[1747684303160,3.96486408,2522.2,2522.0,22.5]
[1747684303358,3.96494984,2522.1,2522.0,22.5]
[1747684303555,1.6243,2522.7,2522.0,22.5]
[1747684303856,3.96485937,2522.2,2522.0,22.5]
[1747684304062,3.96458142,2522.4,2522.0,22.5]
[1747684304359,3.96448992,2522.4,2522.2,0.2383]
[1747684304657,3.96440102,2522.5,2522.2,0.53417239]
[1747684304822,3.96370923,2522.9,2522.2,0.2383]
[1747684305025,3.96449383,2522.4,2522.2,0.2383]
[1747684305249,3.96463545,2522.3,2522.2,0.2383]
[1747684305450,3.96449095,2522.4,2522.2,0.2383]
[1747684305647,3.96422171,2522.6,2522.2,0.2383]
[1747684305847,1.658,2523.0,2522.3,0.12378444]
[1747684306046,3.96237773,2523.8,2522.3,0.12378444]
[1747684306047,1.5763,2523.4,2522.3,0.12378444]
[1747684306235,3.96335826,2523.2,2522.7,0.2383]
[1747684306434,3.96361194,2523.0,2522.8,8.232]
[1747684307132,3.96361194,2523.0,2522.8,8.52745642]
[1747684307534,3.96369257,2522.9,2522.8,8.52745642]
[1747684307949,3.96361501,2523.0,2522.8,8.52745642]
[1747684308262,3.96362115,2523.0,2522.8,8.52745642]
[1747684308741,3.96344549,2523.1,2522.8,8.52745642]
[1747684309141,3.96369257,2522.9,2522.4,11.96437968]
[1747684309339,3.96362145,2523.0,2522.6,8.0]
[1747684310266,3.96353748,2523.0,2522.6,11.96405632]
[1747684310454,3.96353748,2523.0,2522.6,8.0]
[1747684310632,3.96353748,2523.0,2522.6,8.29609796]
[1747684310836,3.96369926,2522.9,2522.6,8.29609796]
[1747684311137,3.96362648,2523.0,2522.6,12.26021031]
[1747684311350,3.96362648,2523.0,2522.6,8.29609796]
[1747684311862,5.53922043,2523.4,2522.6,8.29609796]
[1747684311863,3.9638514,2522.8,2522.6,8.29609796]
[1747684312074,3.96370585,2522.9,2522.6,8.29609796]
[1747684312436,1.5763,2523.4,2522.6,8.29609796]
[1747684312637,1.5763,2523.4,2522.8,8.0]
[1747684312872,3.9632304,2523.2,2522.8,8.0]
[1747684313172,3.9633942,2523.1,2522.8,8.0]
[1747684313542,3.96366006,2523.0,2522.8,8.0]
[1747684313746,3.96369257,2522.9,2522.8,8.0]
[1747684314336,0.79272466,2522.9,2522.6,8.23]
[1747684314566,5.53810681,2522.7,2522.6,8.23]
[1747684317371,3.96400681,2522.7,2522.6,8.23]
[1747684319576,3.96447827,2522.4,2522.3,8.218]
[1747684319741,4.3609261,2522.4,2522.3,8.218]
[1747684320136,5.9080261,2522.4,2522.3,8.218]
[1747684320695,8.218,2523.6,2522.1,0.03964765]
[1747684320847,1.5726,2523.0,2522.1,8.0]
[1747684321046,3.96439749,2522.5,2522.1,8.0]
[1747684321262,1.5726,2523.0,2522.1,8.0]
[1747684321457,3.96431888,2522.6,2522.1,11.96491208]
[1747684321656,3.96446574,2522.5,2522.1,8.0]
[1747684321843,3.96471057,2522.3,2522.1,8.0]
[1747684322377,3.96463545,2522.3,2522.1,8.0]
[1747684322590,3.96479264,2522.2,2522.1,8.0]
[1747684322944,3.96452806,2522.4,2522.1,8.0]
[1747684323140,1.5313,2522.8,2522.1,11.96487192]
[1747684323383,3.96436511,2522.5,2522.1,8.0]
[1747684323570,3.96436511,2522.5,2522.1,11.96494701]
[1747684323887,3.96448613,2522.4,2522.2,0.01528955]
[1747684324382,3.96443112,2522.5,2522.2,0.01528955]
[1747684324587,3.96448747,2522.4,2522.2,0.01528955]
[1747684324881,3.96463545,2522.3,2522.2,0.01528955]
[1747684325086,3.96451912,2522.4,2522.2,0.01528955]
[1747684325584,3.9643757,2522.5,2522.2,0.01528955]
[1747684325774,3.9643324,2522.5,2522.2,0.01528955]
[1747684325972,3.96424521,2522.6,2522.2,0.01528955]
[1747684326363,3.96434288,2522.5,2522.2,0.01528955]
[1747684326564,1.608,2523.0,2522.2,0.01528955]
[1747684326758,3.96456625,2522.4,2522.2,0.01528955]
[1747684326965,3.96423612,2522.6,2522.3,0.2383]
[1747684327163,3.96423612,2522.6,2522.5,8.0]
[1747684328728,4.75706325,2522.6,2522.5,8.0]
[1747684329002,3.96432111,2522.5,2522.4,8.23328834]
[1747684329204,3.96432111,2522.5,2522.4,0.01528834]
[1747684329557,6.07242111,2522.5,2522.4,0.01528834]
[1747684329778,6.1120935,2522.5,2522.4,0.01528834]
[1747684330050,8.03630348,2522.5,2522.4,0.01528834]
[1747684330254,5.55353604,2521.6,2521.5,0.46302978]
[1747684330467,5.59320843,2521.6,2521.5,0.46302978]
[1747684330794,10.55211633,2521.6,2521.5,0.46302978]
[1747684330958,10.51244394,2521.6,2521.5,0.46302978]
[1747684331158,11.9602495,2521.6,2521.5,0.46302978]
[1747684331493,8.218,2522.2,2521.5,0.46302978]
[1747684331494,1.92420998,2522.5,2521.6,0.2536]
[1747684331698,3.96573604,2521.6,2521.5,0.46302978]
[1747684331870,3.96573604,2521.6,2521.5,8.68102978]
[1747684332781,1.5682,2522.3,2521.5,8.218]
[1747684332971,3.96534062,2521.9,2521.6,8.0]
[1747684333570,3.96490531,2522.2,2521.6,11.96570996]
[1747684333808,3.9651795,2522.0,2521.6,8.0]
[1747684334000,1.5682,2522.3,2521.6,8.0]
[1747684334001,3.96535219,2521.9,2521.6,8.0]
[1747684334200,5.53284654,2522.3,2521.6,8.0]
[1747684334399,3.96531129,2521.9,2521.6,8.0]
[1747684335195,3.96517351,2522.0,2521.6,8.0]
[1747684335373,3.96496426,2522.1,2521.6,8.0]
[1747684335577,3.96512135,2522.0,2521.7,0.2536]
[1747684335779,3.96531052,2521.9,2521.7,0.2536]
[1747684336078,1.5682,2522.3,2521.5,8.218]
[1747684336079,3.96573604,2521.6,2521.5,8.218]
[1747684336612,3.96573604,2521.6,2521.5,16.218]
[1747684337987,3.96564284,2521.7,2521.5,16.218]
[1747684338386,3.96550955,2521.8,2521.5,16.218]
[1747684338586,1.5682,2522.3,2521.5,16.218]
[1747684338587,3.96558145,2521.7,2521.5,16.218]
[1747684339019,3.96573604,2521.6,2521.5,16.218]
[1747684339409,3.96667988,2521.0,2520.8,0.2536]
[1747684339716,3.96667988,2521.0,2520.5,14.264]
[1747684339717,3.96667988,2521.0,2520.9,8.68202978]
[1747684340119,3.96667988,2521.0,2520.9,8.219]
[1747684342090,3.96730937,2520.6,2520.5,14.264]
[1747684342301,3.96730937,2520.6,2520.5,22.485]
[1747684345345,3.96730937,2520.6,2520.5,8.221]
[1747684345514,5.50630937,2520.6,2520.5,8.221]
[1747684345710,6.4536586,2520.6,2520.5,8.221]
[1747684346311,5.50630937,2520.6,2520.5,8.221]
[1747684346511,3.96730937,2520.6,2520.5,8.221]
[1747684348641,3.96722092,2520.7,2520.5,8.221]
[1747684348941,1.5024,2521.2,2520.5,8.221]
[1747684348942,3.96730937,2520.6,2520.5,8.221]
[1747684350351,2.34594766,2520.6,2519.7,22.483]
[1747684350655,3.96856893,2519.8,2519.7,22.483]
[1747684350856,3.96935656,2519.3,2519.2,8.67802978]
[1747684351317,3.96935656,2519.3,2519.2,8.215]
[1747684353947,3.96935656,2519.3,2518.9,14.27]
[1747684353948,3.96982929,2519.0,2518.9,14.27]
[1747684356343,3.96961737,2519.2,2518.9,14.27]
[1747684356531,3.96809768,2520.1,2518.9,14.27]
[1747684356532,3.9696717,2519.1,2518.9,14.27]
[1747684358052,3.96982929,2519.0,2518.9,22.27]
[1747684358359,3.96944651,2519.3,2518.9,30.488]
[1747684358662,1.5792,2519.7,2519.0,8.2536]
[1747684358663,3.96908501,2519.5,2519.0,8.2536]
[1747684358960,3.96894733,2519.6,2519.2,8.0]
[1747684359159,3.96724694,2520.7,2519.4,8.0]
[1747684359357,3.9684782,2519.9,2519.5,8.218]
[1747684359661,3.96874332,2519.7,2519.5,8.218]
[1747684359953,3.96867052,2519.8,2519.5,8.218]
[1747684360130,3.96867052,2519.8,2519.6,8.0]
[1747684360335,3.96872643,2519.7,2519.6,8.0]
[1747684360525,3.96865425,2519.8,2519.6,8.0]
[1747684360721,3.96872643,2519.7,2519.6,8.0]
[1747684361346,3.96857193,2519.8,2519.6,8.0]
[1747684361748,3.96872643,2519.7,2519.6,8.0]
[1747684362129,3.96861658,2519.8,2519.6,8.0]
[1747684362550,3.96848063,2519.9,2519.6,11.0]
[1747684362861,3.96778161,2520.3,2519.6,11.0]
[1747684363057,3.968167,2520.1,2519.6,14.96880531]
[1747684363354,3.968167,2520.1,2519.7,0.2536]
[1747684363889,3.96775986,2520.4,2519.8,3.96854241]
[1747684364041,3.96768175,2520.4,2519.9,18.24430796]
[1747684364358,3.96763837,2520.4,2520.0,12.18719732]
[1747684364561,5.51261223,2520.8,2520.0,8.219]
[1747684364741,3.96769079,2520.4,2520.0,8.219]
[1747684365123,3.96755472,2520.5,2520.0,12.1871668]
[1747684365351,3.96741375,2520.6,2520.2,0.2536]
[1747684365582,3.96735983,2520.6,2520.2,0.2536]
[1747684365872,3.967121,2520.8,2520.3,3.96770705]
[1747684366027,3.9671545,2520.7,2520.2,4.22148875]
[1747684366229,1.5456,2521.1,2520.2,0.2536]
[1747684366530,3.96763663,2520.4,2520.2,0.2536]
[1747684366924,0.55119831,2521.0,2520.2,0.2536]
[1747684366925,3.9675329,2520.5,2520.2,0.2536]
[1747684367121,3.96733408,2520.6,2520.2,0.2536]
[1747684367370,3.96724213,2520.7,2520.2,4.51873536]
[1747684367562,3.96724213,2520.7,2519.8,8.218]
[1747684367563,8.0,2520.3,2519.8,8.218]
[1747684367786,3.96841144,2519.9,2519.8,8.218]
[1747684368887,3.96841144,2519.9,2519.5,0.46302978]
[1747684369065,3.96841144,2519.9,2519.8,8.218]
[1747684371580,3.96828123,2520.0,2519.3,14.5286]
[1747684371581,3.96900619,2519.6,2519.3,14.5286]
[1747684371810,3.96900619,2519.6,2519.4,8.218]
[1747684372011,3.96831958,2520.0,2519.5,27.21511917]
[1747684372217,3.96801127,2520.2,2519.7,0.2536]
[1747684372418,3.96779773,2520.3,2519.7,4.22223856]
[1747684372622,3.96771362,2520.4,2519.8,11.96849387]
[1747684372919,3.9677169,2520.4,2519.9,12.4398793]
[1747684373225,3.96755131,2520.5,2520.0,3.96824873]
[1747684373618,3.96768103,2520.4,2519.9,12.56384073]
[1747684373827,3.96768103,2520.4,2520.1,0.12391837]
[1747684374188,3.96768103,2520.4,2520.2,0.12391837]
[1747684374396,3.96730937,2520.6,2520.3,14.276]
[1747684374613,3.96730937,2520.6,2520.4,8.218]
[1747684374796,3.96705852,2520.8,2520.5,0.2536]
[1747684375453,3.96680052,2521.0,2520.5,4.22099243]
[1747684375658,3.9666039,2521.1,2520.6,4.09116309]
[1747684375809,3.9667468,2521.0,2520.6,0.12386029]
[1747684375990,3.96683888,2520.9,2520.6,0.12386029]
[1747684376390,3.96683888,2520.9,2520.7,0.12386029]
[1747684376610,3.96683888,2520.9,2520.6,0.12386029]
[1747684376812,3.96715198,2520.7,2520.6,0.12386029]
[1747684377207,3.96715198,2520.7,2520.6,8.33386029]
[1747684377525,3.96715198,2520.7,2520.6,8.21]
[1747684377904,3.96650814,2521.2,2520.6,8.33386029]
[1747684378109,3.96693606,2520.9,2520.6,8.33386029]
[1747684378423,3.96693606,2520.9,2520.6,8.21]
[1747684378625,3.96699591,2520.8,2520.6,8.21]
[1747684378817,3.96692554,2520.9,2520.6,8.21]
[1747684379006,3.96700297,2520.8,2520.6,8.21]
[1747684379402,1.5017,2521.4,2520.6,8.21]
[1747684379603,3.9668617,2520.9,2520.6,8.21]
[1747684380026,3.96701648,2520.8,2520.6,8.21]
[1747684380230,3.96715198,2520.7,2520.3,14.276]
[1747684380414,3.96825396,2520.0,2519.9,0.71662978]
[1747684380612,3.96820221,2520.1,2519.9,14.2166262]
[1747684380847,3.96820221,2520.1,2520.0,8.0]
[1747684381706,1.5554,2520.8,2519.9,8.92562978]
[1747684381909,5.52243072,2520.8,2519.9,12.89402107]
[1747684382103,3.96785645,2520.3,2520.0,8.0]
[1747684382496,3.96825396,2520.0,2519.9,0.46302978]
[1747684382828,3.96825396,2520.0,2519.9,8.67202978]
[1747684383030,3.96825396,2520.0,2519.9,8.79593085]
[1747684383193,3.96825396,2520.0,2519.9,8.33290107]
[1747684383697,3.96825396,2520.0,2519.9,8.209]
[1747684387327,3.96888394,2519.6,2519.5,14.272]
[1747684387637,3.96888394,2519.6,2519.5,22.482]
[1747684387823,3.96882139,2519.7,2519.5,22.60591934]
[1747684388032,3.96882139,2519.7,2519.6,7.367]
[1747684388334,3.96872643,2519.7,2519.6,8.12391934]
[1747684388527,3.96843341,2519.9,2519.6,13.62919134]
[1747684388834,3.96870793,2519.8,2519.6,8.12391934]
[1747684389143,3.96870793,2519.8,2519.7,0.12391934]
[1747684389529,3.96842508,2519.9,2519.7,0.12391934]
[1747684389860,5.6048072,2520.3,2519.7,0.12391934]
[1747684389861,1.637,2520.3,2519.7,12.09264183]
[1747684390130,3.96841144,2519.9,2519.8,0.2536]
[1747684390435,6.02315258,2519.9,2519.8,0.12391934]
[1747684390825,3.96888394,2519.6,2519.5,22.482]
[1747684391228,3.96888394,2519.6,2519.5,30.482]
[1747684391422,3.96888394,2519.6,2519.5,22.482]
[1747684391627,3.96888394,2519.6,2519.5,22.60592367]
[1747684391849,4.76264852,2519.6,2519.5,22.60592367]
[1747684392005,4.76264852,2519.6,2519.5,22.482]
[1747684392332,6.38574852,2519.6,2519.5,22.482]
[1747684392508,2.41686458,2519.6,2519.5,8.21]
[1747684392710,3.96834562,2520.0,2519.6,8.0]
[1747684393030,1.5009,2520.5,2519.7,14.276]
[1747684393235,3.96794246,2520.2,2519.9,8.0]
[1747684393446,3.96794246,2520.2,2520.0,8.211]
[1747684394256,3.9680965,2520.1,2520.0,16.211]
[1747684394816,1.5009,2520.5,2520.0,8.211]
[1747684395147,3.9680965,2520.1,2520.0,8.211]
[1747684400449,3.96841144,2519.9,2519.8,8.0]
[1747684400647,3.96841144,2519.9,2519.8,16.21]
[1747684401154,3.96841144,2519.9,2519.8,8.21]
[1747684401327,4.92380116,2519.9,2519.8,8.21]
[1747684402455,3.96841144,2519.9,2519.8,8.21]
[1747684403134,3.96834321,2520.0,2519.8,8.21]
[1747684403336,3.96841144,2519.9,2519.8,8.21]
[1747684406755,3.96811796,2520.1,2519.8,8.33391328]
[1747684406955,3.96828613,2520.0,2519.8,8.4636]
[1747684407160,3.96841144,2519.9,2519.8,8.4636]
[1747684407347,3.96841144,2519.9,2519.8,8.21]
[1747684407848,3.96841144,2519.9,2519.8,8.33391188]
[1747684408769,6.2655799,2519.9,2519.8,8.33391188]
[1747684410043,5.47191144,2519.9,2519.8,8.33391188]
[1747684410435,3.96815195,2520.1,2519.8,8.33391188]
[1747684410635,3.96825396,2520.0,2519.9,8.0]
[1747684410853,3.96805434,2520.2,2519.9,8.12391188]
[1747684411467,3.9680965,2520.1,2519.9,8.12391188]
[1747684411669,3.9680965,2520.1,2520.0,0.12391188]
[1747684414051,1.5035,2520.5,2520.0,0.12391188]
[1747684414375,3.96809053,2520.2,2520.0,0.12391188]
[1747684414749,3.96809053,2520.2,2519.9,8.0]
[1747684414951,3.96821919,2520.1,2520.0,0.37039153]
[1747684415158,3.96821919,2520.1,2520.0,0.49429259]
[1747684415860,53.96821919,2520.1,2520.0,0.49429259]
[1747684416985,53.96821919,2520.1,2520.0,16.69529259]
[1747684417782,58.06641189,2520.1,2520.0,16.69529259]
[1747684418167,58.06641189,2520.1,2520.0,0.12390106]
[1747684418378,59.72561189,2520.1,2520.0,8.32490106]
[1747684418675,59.72561189,2520.1,2520.0,8.201]
[1747684419278,3.96872643,2519.7,2519.6,0.46302978]
[1747684419512,5.95289907,2519.7,2519.6,0.46302978]
[1747684419798,5.95289907,2519.7,2519.6,0.58696272]
[1747684420300,3.96888394,2519.6,2519.5,8.201]
[1747684420504,3.96888394,2519.6,2519.5,16.201]
[1747684420872,3.96888394,2519.6,2519.5,16.32493925]
[1747684421203,3.96888394,2519.6,2519.5,16.201]
[1747684421519,5.35792274,2519.6,2519.5,8.32493615]
[1747684421872,5.35792274,2519.6,2519.5,8.201]
[1747684422166,3.96888394,2519.6,2519.5,8.201]
[1747684431228,3.96935656,2519.3,2519.2,8.0]
[1747684431404,3.96935656,2519.3,2519.2,22.152]
[1747684431732,3.97030213,2518.7,2518.4,0.61579173]
[1747684431919,5.53260213,2518.7,2518.4,0.61579173]
[1747684432093,6.87987548,2518.7,2518.4,0.61579173]
[1747684432295,7.46954787,2518.7,2518.4,0.61579173]
[1747684433098,7.42987548,2518.7,2518.4,0.61579173]
[1747684435249,6.87987548,2518.7,2518.4,0.61579173]
[1747684435604,3.97077509,2518.4,2518.3,0.01153875]
[1747684437126,6.32561722,2518.4,2518.3,0.01153875]
[1747684440217,6.91528961,2518.4,2518.3,0.01153875]
[1747684440443,6.87561722,2518.4,2518.3,0.01153875]
[1747684440612,6.32561722,2518.4,2518.3,0.01153875]
[1747684440812,5.53147509,2518.4,2518.3,0.01153875]
[1747684443444,6.08147509,2518.4,2518.3,0.01153875]
[1747684445464,5.53147509,2518.4,2518.3,0.01153875]
[1747684445659,3.97077509,2518.4,2518.3,0.01153875]
[1747684450369,3.97010395,2518.9,2518.4,4.22430849]
[1747684450570,1.6172,2519.5,2518.6,12.22396492]
[1747684450790,3.96926637,2519.4,2518.9,3.96991558]
[1747684450933,3.96982929,2519.0,2518.9,8.196]
[1747684453081,3.96973191,2519.1,2518.9,8.196]
[1747684453279,3.96973191,2519.1,2519.0,0.2536]
[1747684454772,3.96953438,2519.2,2519.0,0.2536]
[1747684454978,3.9694376,2519.3,2519.0,0.2536]
[1747684455144,3.96877091,2519.7,2519.2,0.2536]
[1747684455345,3.96863967,2519.8,2519.2,0.2536]
[1747684455663,3.9685291,2519.9,2519.4,4.22271613]
[1747684455978,3.96866573,2519.8,2519.5,8.195]
[1747684456162,3.96888394,2519.6,2519.5,8.195]
[1747684456472,3.96885121,2519.7,2519.5,8.195]
[1747684456678,3.96888394,2519.6,2519.5,8.195]
[1747684456878,3.96886488,2519.7,2519.5,8.195]
[1747684457255,3.96888394,2519.6,2519.5,8.195]
[1747684458287,3.96881434,2519.7,2519.5,8.195]
[1747684458485,3.96888394,2519.6,2519.5,8.195]
[1747684459391,3.96888394,2519.6,2519.5,14.145]
[1747684459568,3.96888394,2519.6,2519.5,8.195]
[1747684462859,3.95735048,2519.6,2519.5,8.195]
[1747684463473,50.0,2520.1,2519.5,8.195]
[1747684463790,50.0,2520.1,2519.9,0.2536]
[1747684463972,50.0,2520.1,2520.0,14.143]
[1747684467392,53.9680965,2520.1,2520.0,8.193]
[1747684467570,53.9680965,2520.1,2520.0,14.142]
[1747684468305,50.0,2520.1,2520.0,14.142]
[1747684470615,50.0,2520.1,2520.0,33.46752696]
[1747684471125,50.0,2520.1,2520.0,47.74452696]
[1747684471622,50.0,2520.1,2520.0,47.40887496]
[1747684471819,50.0,2520.1,2520.0,40.452486]
[1747684472322,50.0,2520.1,2520.0,38.616117]
[1747684472521,50.0,2520.1,2520.0,42.58437096]
[1747684473043,50.0,2520.1,2520.0,42.83797096]
[1747684473465,50.0,2520.1,2520.0,42.96184212]
[1747684475454,50.0,2520.1,2519.5,10.02902929]
[1747684475455,1.5945,2520.0,2519.4,0.46302978]
[1747684475685,3.96904147,2519.5,2519.4,0.46302978]
[1747684476055,5.56354147,2519.5,2519.4,0.46302978]
[1747684476362,6.11354147,2519.5,2519.4,0.46302978]
[1747684476521,7.12178656,2519.5,2519.4,0.46302978]
[1747684477415,6.57178656,2519.5,2519.4,0.46302978]
[1747684478031,3.9696717,2519.1,2519.0,14.133]
[1747684479118,3.9696717,2519.1,2519.0,22.133]
[1747684480320,3.96951413,2519.2,2519.1,8.0]
[1747684481121,3.9696717,2519.1,2519.0,22.134]
[1747684482025,3.9696717,2519.1,2519.0,14.134]
[1747684483846,3.9696717,2519.1,2518.5,8.186]
[1747684483847,1.5084,2519.0,2518.5,8.186]
[1747684484193,3.97045977,2518.6,2518.5,8.186]
[1747684484368,3.97045977,2518.6,2518.5,16.186]
[1747684492094,1.5084,2519.0,2518.5,16.186]
[1747684492293,3.97045977,2518.6,2518.5,16.186]
[1747684492675,5.63705977,2518.6,2518.5,8.0]
[1747684492916,6.59779878,2518.6,2518.5,16.188]
[1747684493396,6.59779878,2518.6,2518.5,8.188]
[1747684495431,5.63705977,2518.6,2518.5,8.188]